bitfinex/quotes_BTCUSD_20250109
["timestamp","ask_amount","ask_price","bid_price","bid_amount"]
[1736429804500,0.007,92735.0,92727.0,0.215686]
[1736429804968,0.431322,92738.0,92728.0,0.00916]
[1736429805221,0.215658,92739.0,92728.0,0.00916]
[1736429805422,0.097328,92726.0,92709.0,0.215727]
[1736429805643,0.097328,92726.0,92710.0,0.00916]
[1736429805850,0.215691,92725.0,92710.0,0.00916]
[1736429806228,0.215693,92724.0,92702.0,0.215744]
[1736429806454,0.097328,92726.0,92712.0,0.00916]
[1736429806781,0.215702,92721.0,92712.0,0.00916]
[1736429806956,0.15,92730.0,92712.0,0.00916]
[1736429806957,0.097328,92736.0,92712.0,0.00916]
[1736429807095,0.215684,92729.0,92717.0,0.21585715]
[1736429807303,0.097328,92735.0,92717.0,0.00015015]
[1736429807512,0.21567,92734.0,92722.0,0.215698]
[1736429807710,0.21568,92730.0,92722.0,0.215698]
[1736429807916,0.005,92726.0,92722.0,0.215698]
[1736429808137,0.005,92726.0,92723.0,0.05359402]
[1736429808409,0.16327402,92738.0,92724.0,0.215693]
[1736429808645,0.007,92735.0,92724.0,0.215693]
[1736429808859,0.21567,92734.0,92725.0,0.00916]
[1736429809528,0.003,92726.0,92725.0,0.00916]
[1736429809745,0.003,92726.0,92725.0,0.06364528]
[1736429809973,0.003,92726.0,92725.0,0.00905631]
[1736429811291,0.215682,92729.0,92725.0,0.00905631]
[1736429811938,0.215682,92729.0,92725.0,0.01105631]
[1736429812359,0.004,92726.0,92725.0,0.00905631]
[1736429812549,0.215682,92729.0,92725.0,0.00905631]
[1736429812755,0.01985446,92728.0,92725.0,0.00905631]
[1736429813554,0.215686,92727.0,92725.0,0.00905631]
[1736429813730,0.01985446,92728.0,92725.0,0.00905631]
[1736429814120,0.215682,92729.0,92725.0,0.00905631]
[1736429814121,0.01985446,92726.0,92725.0,0.00905631]
[1736429814342,0.215701,92721.0,92717.0,0.00015015]
[1736429814540,0.313031,92720.0,92717.0,0.00015015]
[1736429814948,0.528635,92720.0,92717.0,0.00015015]
[1736429815815,0.215696,92723.0,92717.0,0.00015015]
[1736429816205,0.101328,92720.0,92717.0,0.00015015]
[1736429816402,0.215696,92723.0,92717.0,0.00015015]
[1736429816600,0.215707,92718.0,92717.0,0.00115015]
[1736429816977,0.097328,92721.0,92717.0,0.00015015]
[1736429817190,0.215693,92724.0,92717.0,0.0217457]
[1736429817458,0.15,92725.0,92717.0,0.0217457]
[1736429817669,0.215691,92726.0,92717.0,0.00015015]
[1736429817875,0.006,92720.0,92717.0,0.00015015]
[1736429818323,0.215686,92727.0,92717.0,0.00015015]
[1736429818531,0.001,92723.0,92717.0,0.00015015]
[1736429819144,0.003,92720.0,92717.0,0.00015015]
[1736429819299,0.003,92720.0,92718.0,0.215707]
[1736429819516,0.215682,92729.0,92718.0,0.215707]
[1736429819890,0.004,92723.0,92718.0,0.215707]
[1736429820092,0.004,92723.0,92718.0,0.08277732]
[1736429820322,0.004,92723.0,92717.0,0.10444991]
[1736429820572,0.004,92723.0,92718.0,0.215707]
[1736429820818,0.215699,92722.0,92717.0,0.00015015]
[1736429821033,0.2157,92721.0,92710.0,0.18895945]
[1736429821214,0.09747854,92722.0,92711.0,0.07057756]
[1736429821420,0.2157,92721.0,92711.0,0.07057756]
[1736429821653,0.00015054,92722.0,92712.0,0.215721]
[1736429821854,0.00015054,92722.0,92712.0,0.32002076]
[1736429822298,0.00015054,92722.0,92713.0,0.215719]
[1736429822512,0.003,92720.0,92705.0,8.51e-05]
[1736429822715,0.215731,92708.0,92705.0,8.51e-05]
[1736429823722,0.431462,92708.0,92705.0,8.51e-05]
[1736429825071,0.215731,92708.0,92705.0,8.51e-05]
[1736429825411,0.216731,92708.0,92705.0,0.0010851]
[1736429825639,0.215731,92708.0,92705.0,0.0010851]
[1736429825815,0.215731,92708.0,92705.0,8.51e-05]
[1736429826029,0.431463,92708.0,92705.0,8.51e-05]
[1736429826233,0.431463,92708.0,92705.0,0.0010851]
[1736429826431,0.432463,92708.0,92705.0,0.0010851]
[1736429826608,0.4972812,92708.0,92705.0,8.51e-05]
[1736429827049,0.432463,92708.0,92705.0,8.51e-05]
[1736429827788,0.432463,92708.0,92705.0,0.0010851]
[1736429827969,0.528791,92708.0,92705.0,0.0010851]
[1736429828106,0.215731,92708.0,92705.0,0.0010851]
[1736429828306,0.003,92708.0,92705.0,0.0010851]
[1736429828712,0.097328,92713.0,92705.0,0.0010851]
[1736429828919,0.01347114,92720.0,92710.0,0.215726]
[1736429829129,0.00015054,92722.0,92718.0,0.431414]
[1736429829362,0.00015054,92722.0,92719.0,0.00107844]
[1736429829564,0.00015054,92722.0,92714.0,0.215716]
[1736429829767,0.21585054,92722.0,92708.0,0.215728]
[1736429829971,0.04330469,92722.0,92715.0,0.00916]
[1736429830179,0.097328,92715.0,92705.0,8.51e-05]
[1736429830825,0.215717,92714.0,92705.0,8.51e-05]
[1736429831117,0.097328,92715.0,92705.0,8.51e-05]
[1736429831323,0.215731,92708.0,92705.0,8.51e-05]
[1736429831535,0.097328,92714.0,92705.0,8.51e-05]
[1736429831743,0.215728,92710.0,92705.0,8.51e-05]
[1736429832578,0.002,92708.0,92705.0,8.51e-05]
[1736429832792,0.002,92708.0,92706.0,0.12659197]
[1736429833002,0.01335129,92718.0,92706.0,0.12659197]
[1736429833003,0.001,92715.0,92706.0,0.12659197]
[1736429833203,0.098328,92715.0,92707.0,0.215733]
[1736429833413,0.098328,92715.0,92707.0,0.32003276]
[1736429833623,0.01983517,92709.0,92705.0,8.51e-05]
[1736429833827,0.215731,92708.0,92705.0,8.51e-05]
[1736429834457,0.215731,92708.0,92705.0,0.0010851]
[1736429834882,0.31294908,92708.0,92705.0,0.0010851]
[1736429835089,0.215735,92706.0,92705.0,0.0010851]
[1736429835710,0.59763476,92706.0,92705.0,0.0010851]
[1736429835917,0.69496276,92706.0,92705.0,0.0010851]
[1736429836129,0.69496276,92706.0,92705.0,8.51e-05]
[1736429836551,0.097328,92678.0,92677.0,0.38832232]
[1736429836763,0.375628,92678.0,92677.0,0.38832232]
[1736429836978,0.56206996,92678.0,92677.0,0.38832232]
[1736429837184,0.47992776,92678.0,92677.0,0.38832232]
[1736429837612,0.50292776,92678.0,92677.0,0.38832232]
[1736429838031,0.50307819,92678.0,92677.0,0.37392232]
[1736429838238,0.50307819,92678.0,92677.0,0.37383086]
[1736429838444,0.14102074,92678.0,92677.0,0.37383086]
[1736429838652,0.11802074,92678.0,92677.0,0.37383086]
[1736429839065,0.12602074,92678.0,92677.0,0.37383086]
[1736429839278,0.12602074,92678.0,92650.0,0.00054069]
[1736429839279,0.11245019,92678.0,92650.0,0.00054069]
[1736429839496,0.11245019,92678.0,92628.0,0.00233677]
[1736429839497,0.2,92629.0,92628.0,0.00233677]
[1736429839713,0.1,92584.0,92529.0,0.10496318]
[1736429839951,0.216133,92536.0,92529.0,0.10486918]
[1736429840164,0.1,92530.0,92529.0,0.10486918]
[1736429840371,0.1,92530.0,92524.0,0.0001]
[1736429840372,0.1,92526.0,92524.0,0.0001]
[1736429840593,0.1,92520.0,92519.0,0.00381325]
[1736429840800,0.20565108,92520.0,92519.0,0.00381325]
[1736429841024,0.09789064,92514.0,92501.0,0.00017212]
[1736429841231,0.29789064,92501.0,92500.0,0.38391607]
[1736429841463,0.29789064,92501.0,92462.0,0.00360907]
[1736429841464,0.1,92463.0,92462.0,0.00360907]
[1736429841711,0.09789064,92463.0,92462.0,0.00360907]
[1736429842157,0.09789064,92463.0,92410.0,0.00914381]
[1736429842158,0.1,92438.0,92410.0,0.00914381]
[1736429842361,0.10429976,92420.0,92397.0,0.0785]
[1736429842579,0.00135263,92419.0,92406.0,0.00210936]
[1736429842831,0.10429976,92418.0,92406.0,0.00026467]
[1736429843030,0.01178303,92417.0,92357.0,0.1]
[1736429843243,0.1,92416.0,92338.0,0.05466829]
[1736429843444,0.00014982,92445.0,92390.0,0.21432361]
[1736429843445,0.00135302,92415.0,92390.0,0.21432361]
[1736429843654,3.53068361,92416.0,92412.0,0.21638]
[1736429843863,2.46788426,92416.0,92415.0,0.15]
[1736429844075,2.46788426,92416.0,92413.0,0.01448]
[1736429844076,0.3,92492.0,92413.0,0.01448]
[1736429844302,0.03117997,92516.0,92470.0,0.21428361]
[1736429844303,0.1,92490.0,92470.0,0.21428361]
[1736429844515,0.216296,92466.0,92430.0,0.21432361]
[1736429844729,0.216296,92466.0,92356.0,0.1514]
[1736429844730,0.1,92489.0,92450.0,0.21432361]
[1736429844941,1.99056551,92491.0,92431.0,0.01716]
[1736429845144,0.01985799,92490.0,92481.0,0.21432361]
[1736429845352,0.01985799,92490.0,92445.0,0.10429976]
[1736429845353,0.00014996,92501.0,92500.0,0.216216]
[1736429845563,0.01666096,92501.0,92500.0,0.01932]
[1736429845767,0.01666096,92501.0,92500.0,0.02477086]
[1736429845768,0.50442056,92501.0,92500.0,0.02477086]
[1736429845972,0.01563904,92501.0,92500.0,0.00545086]
[1736429846189,0.3,92575.0,92500.0,0.00545086]
[1736429846190,0.1,92529.0,92502.0,0.15]
[1736429846390,0.00135138,92528.0,92521.0,0.216167]
[1736429846599,0.1,92534.0,92503.0,0.08336482]
[1736429846809,0.00135128,92533.0,92518.0,0.43049561]
[1736429847033,0.0013513,92546.0,92523.0,0.21432361]
[1736429847256,0.0013513,92546.0,92542.0,0.216117]
[1736429847463,0.1,92545.0,92519.0,0.02418846]
[1736429847666,0.00134822,92544.0,92519.0,0.02418846]
[1736429847889,0.00134822,92557.0,92543.0,0.15]
[1736429848099,0.1,92586.0,92548.0,0.216104]
[1736429848319,0.1,92604.0,92549.0,0.216101]
[1736429848533,0.1,92604.0,92591.0,0.2159115]
[1736429848753,0.1,92622.0,92591.0,0.4319145]
[1736429848958,0.0476,92676.0,92591.0,0.21582001]
[1736429848959,0.01401111,92595.0,92591.0,0.21582001]
[1736429849176,0.0138609,92595.0,92593.0,0.215999]
[1736429849436,0.0138609,92595.0,92593.0,0.315999]
[1736429849654,0.0138609,92595.0,92594.0,0.10429976]
[1736429849864,0.1,92584.0,92575.0,0.216039]
[1736429850071,0.1,92585.0,92575.0,0.10429976]
[1736429850295,0.1,92585.0,92579.0,0.21603]
[1736429850539,0.1,92593.0,92587.0,0.216011]
[1736429850774,0.01401111,92595.0,92587.0,0.432023]
[1736429850988,0.01401111,92595.0,92594.0,0.1]
[1736429851219,0.01401111,92595.0,92594.0,0.20429976]
[1736429851424,0.01401111,92595.0,92594.0,0.30859952]
[1736429851625,1.1e-07,92595.0,92594.0,0.40859952]
[1736429851835,0.1,92632.0,92631.0,0.1]
[1736429852260,0.10015091,92632.0,92631.0,0.21591]
[1736429852460,0.10015091,92632.0,92624.0,0.1]
[1736429852637,0.00015091,92632.0,92631.0,0.1]
[1736429852846,0.1,92620.0,92601.0,0.0466]
[1736429853054,0.1,92613.0,92602.0,0.10429976]
[1736429853257,0.1,92613.0,92612.0,0.1]
[1736429853464,0.00015091,92632.0,92612.0,0.1]
[1736429853465,0.1,92621.0,92620.0,0.215933]
[1736429853683,0.1,92624.0,92620.0,0.43187]
[1736429853882,0.00015091,92632.0,92630.0,0.1]
[1736429854093,0.00015091,92632.0,92631.0,0.42020976]
[1736429854505,0.00015091,92632.0,92588.0,0.0415]
[1736429854506,0.1,92589.0,92588.0,0.0415]
[1736429854711,0.1,92573.0,92571.0,0.0415]
[1736429854933,0.04554253,92566.0,92565.0,0.0415]
[1736429855145,0.04554253,92562.0,92561.0,0.0415]
[1736429855357,0.04554253,92555.0,92554.0,0.0415]
[1736429855562,0.04554253,92546.0,92545.0,0.0415]
[1736429855806,0.04554253,92517.0,92516.0,0.00108062]
[1736429855991,0.04554253,92503.0,92495.0,0.0415]
[1736429856204,0.04554253,92512.0,92505.0,0.0415]
[1736429856404,0.10429976,92512.0,92508.0,0.216195]
[1736429856613,0.04554253,92535.0,92518.0,0.0415]
[1736429856807,0.1,92559.0,92502.0,0.00058709]
[1736429856808,0.043308,92542.0,92525.0,0.0415]
[1736429857016,0.043308,92542.0,92541.0,0.0415]
[1736429857217,0.04554253,92539.0,92538.0,0.0415]
[1736429857417,0.043302,92553.0,92542.0,0.0415]
[1736429857630,0.04554253,92566.0,92552.0,0.0415]
[1736429857865,0.04554253,92577.0,92576.0,0.0415]
[1736429858307,0.04554253,92578.0,92577.0,0.216036]
[1736429858513,0.04554253,92577.0,92576.0,0.0415]
[1736429858728,0.04554253,92567.0,92566.0,0.0415]
[1736429858932,0.04554253,92567.0,92517.0,0.05445747]
[1736429858933,0.216062,92566.0,92552.0,0.00040189]
[1736429859145,0.216077,92560.0,92552.0,0.00040189]
[1736429859350,0.25429976,92559.0,92552.0,0.00040189]
[1736429859578,0.47037876,92559.0,92552.0,0.0002982]
[1736429859781,0.25429976,92559.0,92552.0,0.0002982]
[1736429859990,0.216062,92566.0,92552.0,0.0002982]
[1736429860200,0.216048,92572.0,92554.0,0.0415]
[1736429860397,0.10429976,92571.0,92554.0,0.0415]
[1736429860635,0.21607,92563.0,92552.0,0.0002982]
[1736429860851,0.216017,92585.0,92571.0,0.0415]
[1736429861055,0.216047,92573.0,92564.0,0.0415]
[1736429861232,0.216047,92573.0,92564.0,0.0135]
[1736429861478,0.15,92583.0,92552.0,0.0137982]
[1736429861479,0.216063,92566.0,92552.0,0.0137982]
[1736429861694,0.15,92571.0,92552.0,0.0137982]
[1736429861893,0.216069,92564.0,92552.0,0.0137982]
[1736429862125,0.216084,92557.0,92552.0,0.0137982]
[1736429862326,0.432168,92557.0,92552.0,0.0137982]
[1736429862458,0.15,92556.0,92542.0,0.0087982]
[1736429862661,0.15,92556.0,92489.0,0.216241]
[1736429862662,0.00050261,92557.0,92552.0,0.0087982]
[1736429862860,0.216085,92556.0,92552.0,0.0087982]
[1736429863074,0.216085,92556.0,92527.0,0.216152]
[1736429863075,0.00050261,92557.0,92549.0,0.0087982]
[1736429863736,0.00021014,92557.0,92549.0,0.0087982]
[1736429864281,0.00021014,92557.0,92556.0,0.0087982]
[1736429865128,0.216036,92577.0,92556.0,0.0087982]
[1736429865299,0.15,92570.0,92559.0,0.0087982]
[1736429865512,0.15,92570.0,92556.0,0.00015021]
[1736429865925,0.216078,92560.0,92556.0,0.00015021]
[1736429866128,0.432156,92560.0,92556.0,0.00015021]
[1736429866503,0.15,92566.0,92556.0,0.00015021]
[1736429866915,0.216067,92564.0,92556.0,0.00015021]
[1736429867173,0.01943117,92569.0,92556.0,0.22503241]
[1736429867374,0.01943117,92569.0,92568.0,0.0087982]
[1736429867763,0.21601,92588.0,92577.0,0.0087982]
[1736429868170,0.432021,92588.0,92577.0,0.0087982]
[1736429868391,0.216024,92582.0,92577.0,0.0087982]
[1736429868599,0.05065292,92589.0,92579.0,0.0087982]
[1736429868795,0.05065292,92589.0,92584.0,0.0087982]
[1736429868995,0.05065292,92589.0,92588.0,0.0087982]
[1736429869223,0.215993,92596.0,92587.0,0.0087982]
[1736429869377,0.043282,92599.0,92589.0,0.0087982]
[1736429869739,0.215978,92602.0,92589.0,0.0087982]
[1736429869740,0.215987,92598.0,92589.0,0.0087982]
[1736429870083,0.043281,92602.0,92601.0,0.0087982]
[1736429870280,0.043281,92602.0,92590.0,0.10429976]
[1736429870492,0.1,92583.0,92537.0,0.09453911]
[1736429870696,0.00107998,92582.0,92557.0,0.00015021]
[1736429870869,0.1,92597.0,92558.0,0.10429976]
[1736429870870,0.00107998,92596.0,92558.0,0.10429976]
[1736429871056,0.21603,92580.0,92558.0,0.10429976]
[1736429871270,0.00107998,92579.0,92558.0,0.10429976]
[1736429871468,0.216034,92578.0,92558.0,0.10429976]
[1736429871666,0.00107998,92577.0,92559.0,0.0398341]
[1736429871869,0.00107998,92577.0,92557.0,0.00015021]
[1736429872420,0.1,92587.0,92557.0,0.00015021]
[1736429872586,0.216071,92562.0,92557.0,0.00015021]
[1736429872732,0.216066,92565.0,92557.0,0.00015021]
[1736429872932,0.10429976,92586.0,92557.0,0.00015021]
[1736429873140,0.1,92590.0,92558.0,0.10429976]
[1736429873341,0.216044,92574.0,92558.0,0.10429976]
[1736429873786,0.432088,92574.0,92558.0,0.10429976]
[1736429873990,0.14758776,92589.0,92558.0,0.10429976]
[1736429874193,0.216045,92573.0,92558.0,0.10429976]
[1736429874600,0.216079,92559.0,92557.0,0.00015021]
[1736429874834,0.216068,92564.0,92557.0,0.00015021]
[1736429875038,0.21608,92558.0,92557.0,0.00015021]
[1736429875395,0.216068,92564.0,92557.0,0.00015021]
[1736429875599,0.03134281,92558.0,92557.0,0.00015021]
[1736429877401,0.05179613,92558.0,92557.0,0.00015021]
[1736429879471,0.02045332,92558.0,92557.0,0.00015021]
[1736429880560,0.27475308,92558.0,92557.0,0.00015021]
[1736429880764,0.02045332,92558.0,92557.0,0.00015021]
[1736429881228,0.04012918,92558.0,92557.0,0.00015021]
[1736429881664,0.39442894,92558.0,92557.0,0.00015021]
[1736429881872,2.09442894,92558.0,92557.0,0.00015021]
[1736429882075,0.84342894,92558.0,92557.0,0.00015021]
[1736429882510,0.216171,92519.0,92509.0,0.09467663]
[1736429882940,0.216171,92519.0,92506.0,0.0813]
[1736429883585,0.23662432,92519.0,92506.0,0.0813]
[1736429883796,0.51059994,92519.0,92504.0,0.09467663]
[1736429884017,2.65660198,92519.0,92518.0,2e-07]
[1736429884223,1.23145398,92519.0,92518.0,2e-07]
[1736429884619,0.366206,92504.0,92503.0,0.0012]
[1736429884877,2.29005676,92504.0,92503.0,0.0012]
[1736429885085,0.1,92500.0,92492.0,8.52e-05]
[1736429885310,2.39005676,92500.0,92492.0,8.52e-05]
[1736429885524,0.466232,92493.0,92492.0,2e-07]
[1736429885743,0.09665076,92480.0,92457.0,0.09467663]
[1736429885955,0.216298,92465.0,92457.0,0.09467663]
[1736429886171,0.216298,92465.0,92442.0,0.00334924]
[1736429886172,0.216298,92465.0,92443.0,0.09467663]
[1736429886379,0.216282,92472.0,92452.0,0.00334924]
[1736429886594,0.216265,92479.0,92455.0,0.216321]
[1736429886797,0.216277,92474.0,92461.0,0.216305]
[1736429887005,0.00786666,92464.0,92455.0,0.216321]
[1736429887857,0.00786666,92464.0,92463.0,0.10438496]
[1736429888073,0.00786666,92464.0,92463.0,0.03240432]
[1736429888298,0.00786666,92464.0,92454.0,0.216323]
[1736429888518,0.00786666,92464.0,92455.0,0.10429976]
[1736429888754,0.00786666,92464.0,92441.0,0.00334924]
[1736429888957,0.00786666,92470.0,92442.0,0.10429976]
[1736429889198,0.32058776,92469.0,92438.0,0.09467663]
[1736429889433,0.216341,92447.0,92444.0,0.09467663]
[1736429889608,0.10429976,92469.0,92444.0,0.09467663]
[1736429889609,0.07485729,92469.0,92444.0,0.09467663]
[1736429889857,0.216337,92449.0,92444.0,0.09467663]
[1736429890303,0.216356,92440.0,92423.0,0.0458]
[1736429890515,0.216309,92461.0,92423.0,0.0458]
[1736429890516,0.216379,92431.0,92423.0,0.0458]
[1736429890732,0.216379,92431.0,92419.0,0.09467663]
[1736429890733,0.216389,92426.0,92419.0,0.09467663]
[1736429890939,0.15,92446.0,92419.0,0.09467663]
[1736429891157,0.216381,92430.0,92419.0,0.09467663]
[1736429891396,0.15,92444.0,92413.0,0.0767]
[1736429891618,0.432843,92413.0,92409.0,0.09467663]
[1736429891876,0.216424,92411.0,92409.0,0.09467663]
[1736429892338,0.10429976,92410.0,92386.0,0.09467663]
[1736429892583,0.10429976,92410.0,92390.0,0.00334924]
[1736429892788,0.00015038,92430.0,92395.0,0.00334924]
[1736429893015,0.00015038,92430.0,92407.0,0.00334924]
[1736429893016,0.216392,92425.0,92407.0,0.00334924]
[1736429893234,0.00015038,92430.0,92396.0,0.15268192]
[1736429893235,0.00015038,92430.0,92409.0,0.21977824]
[1736429893439,0.00015038,92430.0,92396.0,0.0473]
[1736429893440,0.00015038,92430.0,92410.0,0.17939976]
[1736429893648,0.00015038,92430.0,92396.0,0.0473]
[1736429893649,0.15,92428.0,92396.0,0.0473]
[1736429893895,0.15,92428.0,92392.0,0.00334924]
[1736429893896,0.216438,92405.0,92392.0,0.00334924]
[1736429894107,0.15,92425.0,92393.0,0.216466]
[1736429894330,0.216422,92412.0,92393.0,0.432932]
[1736429894542,0.09680114,92430.0,92391.0,0.08]
[1736429894543,0.00015038,92430.0,92403.0,0.216441]
[1736429894717,0.10429976,92411.0,92391.0,0.08]
[1736429894872,0.21644,92405.0,92391.0,0.0799084]
[1736429895076,0.216442,92404.0,92392.0,0.00334924]
[1736429895277,0.216453,92399.0,92391.0,0.0799084]
[1736429895477,0.10429976,92411.0,92391.0,0.0699084]
[1736429895905,0.10429976,92411.0,92385.0,0.00334924]
[1736429896112,0.216447,92402.0,92351.0,8.53e-05]
[1736429896333,0.10429976,92397.0,92370.0,0.00343454]
[1736429896516,0.023,92417.0,92370.0,0.00343454]
[1736429896517,0.216511,92374.0,92370.0,8.53e-05]
[1736429896740,0.216515,92372.0,92370.0,8.53e-05]
[1736429896931,0.21651,92375.0,92370.0,8.53e-05]
[1736429897289,0.10429976,92374.0,92370.0,8.53e-05]
[1736429897491,0.32081076,92374.0,92370.0,8.53e-05]
[1736429897702,0.10429976,92371.0,92370.0,8.53e-05]
[1736429897921,0.71568946,92371.0,92370.0,8.53e-05]
[1736429898113,0.1,92357.0,92319.0,0.09467663]
[1736429898321,0.216637,92321.0,92319.0,0.09302587]
[1736429898520,0.216637,92321.0,92320.0,0.00599061]
[1736429898724,0.10429976,92321.0,92320.0,0.00599061]
[1736429899162,0.10429976,92321.0,92294.0,3.99665668]
[1736429899535,0.10429976,92320.0,92301.0,0.00599097]
[1736429899945,0.10429976,92320.0,92294.0,3.99665668]
[1736429900157,0.10429976,92316.0,92300.0,0.10429342]
[1736429900387,0.10429976,92316.0,92301.0,0.00599097]
[1736429900611,0.0001501,92321.0,92320.0,0.216637]
[1736429900821,0.0001501,92321.0,92320.0,0.21654534]
[1736429901050,0.0001501,92321.0,92320.0,0.37253595]
[1736429901258,0.0001501,92321.0,92320.0,0.22244433]
[1736429901474,0.0310941,92360.0,92320.0,0.11029037]
[1736429901679,0.0310941,92360.0,92359.0,0.216546]
[1736429902116,0.0310941,92360.0,92359.0,0.37253587]
[1736429902334,0.0310941,92360.0,92359.0,0.47683563]
[1736429902538,0.00015091,92368.0,92367.0,0.366527]
[1736429902747,0.01047618,92406.0,92402.0,0.216443]
[1736429902951,0.01047618,92406.0,92374.0,0.15]
[1736429903158,0.01062706,92406.0,92400.0,0.216448]
[1736429903371,0.00015088,92406.0,92400.0,0.432896]
[1736429903580,0.1,92455.0,92403.0,0.15]
[1736429903789,0.01047618,92456.0,92438.0,0.216361]
[1736429904019,0.00475082,92439.0,92438.0,0.216361]
[1736429904464,0.00475082,92439.0,92438.0,0.22234937]
[1736429905946,0.00475082,92439.0,92438.0,0.00598837]
[1736429906377,0.00475082,92439.0,92404.0,0.20429976]
[1736429906617,0.00475082,92439.0,92438.0,0.00591216]
[1736429906835,0.00475082,92439.0,92403.0,0.216442]
[1736429906836,0.10905058,92439.0,92387.0,0.1]
[1736429907049,0.0001708,92409.0,92379.0,0.0765]
[1736429907260,0.1,92394.0,92367.0,0.14201495]
[1736429907430,0.216485,92385.0,92367.0,0.14201495]
[1736429907692,0.2165998,92409.0,92367.0,0.14201495]
[1736429907693,0.10429976,92384.0,92367.0,0.14201495]
[1736429907908,0.1,92372.0,92343.0,0.14262464]
[1736429908129,0.1,92364.0,92343.0,0.14262464]
[1736429908543,0.1,92364.0,92325.0,0.216625]
[1736429908544,0.21652,92370.0,92320.0,0.0765]
[1736429908750,0.01946526,92371.0,92343.0,0.00050261]
[1736429908965,0.1,92411.0,92352.0,0.1]
[1736429909188,0.10429976,92408.0,92392.0,0.216468]
[1736429909396,0.1,92446.0,92384.0,0.25]
[1736429909604,0.15,92415.0,92383.0,0.0774]
[1736429909816,0.0494,92473.0,92349.0,0.0774]
[1736429909817,0.21645,92400.0,92349.0,0.0774]
[1736429910023,0.25429976,92394.0,92349.0,0.08998]
[1736429910230,0.216471,92391.0,92350.0,0.10429976]
[1736429910456,0.25429976,92394.0,92350.0,0.20538255]
[1736429910677,0.25429976,92394.0,92366.0,0.216528]
[1736429911107,0.216445,92402.0,92367.0,0.10429976]
[1736429911317,0.10429976,92401.0,92368.0,0.01042998]
[1736429911527,0.10429976,92401.0,92369.0,0.10429976]
[1736429911765,0.0001708,92409.0,92373.0,0.10429976]
[1736429912000,0.0001708,92409.0,92395.0,0.216461]
[1736429912295,0.0001708,92409.0,92405.0,0.216437]
[1736429912541,0.0001708,92409.0,92397.0,0.216457]
[1736429912797,0.0001708,92409.0,92398.0,0.10429976]
[1736429913101,0.0046,92439.0,92414.0,0.1]
[1736429913316,0.0046,92439.0,92415.0,0.10429976]
[1736429913486,0.0046,92439.0,92427.0,0.216386]
[1736429913698,0.0046,92439.0,92428.0,0.00603801]
[1736429913921,0.10429976,92438.0,92428.0,0.00603801]
[1736429914127,0.15,92429.0,92399.0,0.0774]
[1736429914336,0.1,92422.0,92374.0,0.0793]
[1736429914541,0.216438,92405.0,92375.0,0.11327276]
[1736429914749,0.10429976,92404.0,92375.0,0.00603902]
[1736429914960,0.15,92403.0,92375.0,0.00603902]
[1736429915167,0.15,92401.0,92375.0,0.00603902]
[1736429915372,0.216474,92390.0,92374.0,0.07980261]
[1736429915601,0.1,92405.0,92374.0,0.07980261]
[1736429915602,0.216454,92398.0,92374.0,0.18410237]
[1736429915788,0.10429976,92397.0,92374.0,0.07980261]
[1736429916013,0.043378,92397.0,92375.0,0.11033878]
[1736429916227,0.10429976,92396.0,92375.0,0.00603902]
[1736429916433,0.216495,92381.0,92375.0,0.00603902]
[1736429916667,0.216508,92375.0,92374.0,0.00050261]
[1736429917602,0.216495,92381.0,92374.0,0.00050261]
[1736429917818,0.04338,92396.0,92374.0,0.00050261]
[1736429918038,0.216495,92381.0,92374.0,0.00050261]
[1736429918254,0.216497,92380.0,92374.0,0.00050261]
[1736429918474,0.216501,92378.0,92374.0,0.00050261]
[1736429918691,0.433002,92378.0,92374.0,0.00050261]
[1736429919311,0.216506,92376.0,92374.0,0.00050261]
[1736429919569,0.10429976,92375.0,92374.0,0.00050261]
[1736429920232,2.29005676,92375.0,92374.0,0.00050261]
[1736429920435,2.39005676,92375.0,92374.0,0.00050261]
[1736429920869,0.216629,92324.0,92322.0,8.54e-05]
[1736429921085,0.10429976,92323.0,92322.0,8.54e-05]
[1736429921504,0.01956292,92323.0,92322.0,8.54e-05]
[1736429921719,0.01956292,92323.0,92298.0,0.0515874]
[1736429921933,0.01956292,92323.0,92320.0,0.05]
[1736429922369,0.02006503,92323.0,92320.0,0.05]
[1736429922580,0.02006503,92323.0,92321.0,0.00629901]
[1736429922799,0.10429976,92322.0,92321.0,0.00629901]
[1736429923023,0.21713211,92323.0,92320.0,0.05]
[1736429923693,0.216635,92321.0,92320.0,0.05]
[1736429923901,0.32093476,92321.0,92320.0,0.05]
[1736429924741,2.65750352,92321.0,92320.0,0.05]
[1736429925166,2.65750352,92321.0,92320.0,0.047]
[1736429925167,0.52174652,92321.0,92320.0,0.047]
[1736429925592,0.96274652,92321.0,92320.0,0.047]
[1736429926011,0.96274652,92321.0,92320.0,0.044]
[1736429926280,0.96274652,92321.0,92320.0,0.016]
[1736429927317,0.21530482,92295.0,92294.0,3.99615968]
[1736429927562,0.31960458,92295.0,92294.0,4.00245921]
[1736429927790,0.31956458,92295.0,92294.0,4.00245921]
[1736429928637,2.60582338,92295.0,92294.0,4.00245921]
[1736429929084,2.50582338,92295.0,92294.0,4.00245921]
[1736429929288,2.70582338,92295.0,92294.0,4.00245921]
[1736429929489,3.09781276,92295.0,92294.0,4.00245921]
[1736429929696,2.70900986,92295.0,92294.0,4.00245921]
[1736429929912,0.54366454,92295.0,92294.0,4.00245921]
[1736429930140,0.09504317,92295.0,92294.0,4.00245921]
[1736429930353,0.09504317,92295.0,92294.0,3.99945921]
[1736429930354,0.05106691,92295.0,92294.0,3.99945921]
[1736429930557,0.05106691,92295.0,92294.0,3.99949921]
[1736429930758,0.15536667,92295.0,92294.0,3.99949921]
[1736429931183,0.10480156,92295.0,92294.0,3.97139921]
[1736429931405,0.10480156,92295.0,92294.0,3.97130754]
[1736429931611,0.09268957,92295.0,92294.0,3.95916054]
[1736429931819,0.216694,92296.0,92294.0,3.95916054]
[1736429932032,1.0277,92300.0,92294.0,3.95931142]
[1736429932522,1.0277,92300.0,92295.0,0.433391]
[1736429932747,1.0277,92300.0,92296.0,0.00558344]
[1736429933174,1.0277,92300.0,92294.0,3.95301189]
[1736429933378,1.0277,92300.0,92297.0,0.00558343]
[1736429933580,1.0277,92300.0,92294.0,3.95301189]
[1736429933784,1.0277,92300.0,92298.0,0.0055335]
[1736429933988,1.0277,92300.0,92294.0,3.95301189]